[Event "Early-Titled-Tuesday-Blitz-February-27-2024"]
[Site "Chess.com"]
[Date "2024.02.27"]
[Round "3"]
[White "Aleksandar-Topalov"]
[Black "deepfear"]
[Result "1-0"]
[WhiteElo "2344"]
[BlackElo "1973"]
[TimeControl "180+1"]
[EndTime "8:26:34 PST"]
[Termination "Aleksandar-Topalov won on time"]

1. b3 {[%clk 0:03:00.9]} 1... e5 {[%clk 0:02:54.8]} 2. Bb2 {[%clk 0:02:59.8]}
2... Nc6 {[%clk 0:02:53.8]} 3. e3 {[%clk 0:02:59.3]} 3... d6 {[%clk 0:02:46.7]}
4. c4 {[%clk 0:02:57.2]} 4... Bf5 {[%clk 0:02:38.6]} 5. a3 {[%clk 0:02:55.4]}
5... Nf6 {[%clk 0:02:35.4]} 6. Nf3 {[%clk 0:02:50.3]} 6... Be7 {[%clk
0:02:33.8]} 7. Be2 {[%clk 0:02:50.2]} 7... O-O {[%clk 0:02:33.1]} 8. O-O {[%clk
0:02:50.1]} 8... h6 {[%clk 0:02:22.5]} 9. d4 {[%clk 0:02:49.7]} 9... exd4 {[%clk
0:01:56.7]} 10. Nxd4 {[%clk 0:02:47.9]} 10... Nxd4 {[%clk 0:01:55.3]} 11. Qxd4
{[%clk 0:02:47.2]} 11... Qd7 {[%clk 0:01:28.5]} 12. Nc3 {[%clk 0:02:46.2]} 12...
c6 {[%clk 0:01:14.9]} 13. b4 {[%clk 0:02:38.3]} 13... Qe6 {[%clk 0:01:09.2]} 14.
Bf3 {[%clk 0:02:32.3]} 14... Rad8 {[%clk 0:01:03.8]} 15. Qxa7 {[%clk 0:02:13.5]}
15... Rd7 {[%clk 0:00:32.6]} 16. Qd4 {[%clk 0:02:11.2]} 16... Rfd8 {[%clk
0:00:29.6]} 17. Rac1 {[%clk 0:02:01.8]} 17... Ne8 {[%clk 0:00:17.8]} 18. Qd2
{[%clk 0:01:52.8]} 18... Bf6 {[%clk 0:00:15]} 19. Rfd1 {[%clk 0:01:50]} 19...
Nc7 {[%clk 0:00:12.4]} 20. Na4 {[%clk 0:01:40.9]} 20... Bxb2 {[%clk 0:00:06.2]}
21. Qxb2 {[%clk 0:01:40.6]} 21... Bg4 {[%clk 0:00:06.5]} 22. Bxg4 {[%clk
0:01:37.1]} 22... Qxg4 {[%clk 0:00:07.4]} 23. h3 {[%clk 0:01:33.3]} 23... Qg6
{[%clk 0:00:06.6]} 24. Qc2 {[%clk 0:01:26.6]} 24... Qg5 {[%clk 0:00:03.4]} 25.
Rd4 {[%clk 0:01:19.8]} 1-0

[Event "Early-Titled-Tuesday-Blitz-February-27-2024"]
[Site "Chess.com"]
[Date "2024.02.27"]
[Round "3"]
[White "Preobrazhenska_D2011"]
[Black "MKlose11"]
[Result "1-0"]
[WhiteElo "2440"]
[BlackElo "2594"]
[TimeControl "180+1"]
[EndTime "8:26:36 PST"]
[Termination "Preobrazhenska_D2011 won by checkmate"]

1. e4 {[%clk 0:02:59.9]} 1... e6 {[%clk 0:02:59.5]} 2. d4 {[%clk 0:02:59.7]}
2... d5 {[%clk 0:03:00.4]} 3. Nc3 {[%clk 0:03:00]} 3... Bb4 {[%clk 0:03:00.2]}
4. e5 {[%clk 0:03:00.4]} 4... Ne7 {[%clk 0:03:00.5]} 5. Qg4 {[%clk 0:02:51.1]}
5... g6 {[%clk 0:02:59]} 6. Bg5 {[%clk 0:02:43.8]} 6... c5 {[%clk 0:02:57.1]} 7.
Nf3 {[%clk 0:02:33.5]} 7... h5 {[%clk 0:02:56.2]} 8. Qf4 {[%clk 0:02:30.4]} 8...
cxd4 {[%clk 0:02:54.9]} 9. Nxd4 {[%clk 0:02:27.9]} 9... Nbc6 {[%clk 0:02:55]}
10. Bf6 {[%clk 0:02:05.8]} 10... Nxd4 {[%clk 0:02:45.6]} 11. Qxd4 {[%clk
0:02:01.9]} 11... Nc6 {[%clk 0:02:41.3]} 12. Bb5 {[%clk 0:01:50.5]} 12... Qa5
{[%clk 0:02:31.9]} 13. Bxc6+ {[%clk 0:01:41.6]} 13... bxc6 {[%clk 0:02:20.3]}
14. Bxh8 {[%clk 0:01:40.3]} 14... c5 {[%clk 0:02:20.7]} 15. Qd2 {[%clk
0:01:09.5]} 15... d4 {[%clk 0:02:18]} 16. O-O {[%clk 0:01:07.4]} 16... dxc3
{[%clk 0:02:16.6]} 17. bxc3 {[%clk 0:01:03]} 17... Bxc3 {[%clk 0:02:15.6]} 18.
Qd6 {[%clk 0:01:03.4]} 18... Qd8 {[%clk 0:02:09]} 19. Qxd8+ {[%clk 0:00:50.5]}
19... Kxd8 {[%clk 0:02:09.1]} 20. Rad1+ {[%clk 0:00:51.2]} 20... Kc7 {[%clk
0:02:08.5]} 21. Rd3 {[%clk 0:00:50.1]} 21... Bd4 {[%clk 0:01:56.1]} 22. Ra3
{[%clk 0:00:34.6]} 22... c4 {[%clk 0:01:50.2]} 23. Rf3 {[%clk 0:00:31.9]} 23...
Kc6 {[%clk 0:01:31.4]} 24. Rxf7 {[%clk 0:00:28.6]} 24... Kd5 {[%clk 0:01:31.7]}
25. Rd1 {[%clk 0:00:25.9]} 25... c3 {[%clk 0:01:30.5]} 26. Rf4 {[%clk
0:00:23.3]} 26... Rb8 {[%clk 0:01:24.8]} 27. Rfxd4+ {[%clk 0:00:23.5]} 27... Kc5
{[%clk 0:01:25.3]} 28. Bf6 {[%clk 0:00:21.2]} 28... Rb2 {[%clk 0:01:24.7]} 29.
Be7+ {[%clk 0:00:21.3]} 29... Kc6 {[%clk 0:01:25.2]} 30. Rc4+ {[%clk 0:00:21]}
30... Kb7 {[%clk 0:01:23.6]} 31. Rxc3 {[%clk 0:00:21.2]} 31... Rxa2 {[%clk
0:01:24.1]} 32. Rb1+ {[%clk 0:00:21.2]} 32... Ka6 {[%clk 0:01:24.1]} 33. Rxc8
{[%clk 0:00:19.4]} 33... h4 {[%clk 0:01:24.8]} 34. Rc6+ {[%clk 0:00:19.4]} 34...
Ka5 {[%clk 0:01:24.4]} 35. Bd8+ {[%clk 0:00:19.9]} 35... Ka4 {[%clk 0:01:24.9]}
36. Ra6# {[%clk 0:00:20.4]} 1-0

[Event "Early-Titled-Tuesday-Blitz-February-27-2024"]
[Site "Chess.com"]
[Date "2024.02.27"]
[Round "3"]
[White "EdmundPlayer"]
[Black "Tashik"]
[Result "0-1"]
[WhiteElo "2266"]
[BlackElo "2500"]
[TimeControl "180+1"]
[EndTime "8:26:37 PST"]
[Termination "Tashik won by resignation"]

1. Nf3 {[%clk 0:02:56.7]} 1... d5 {[%clk 0:02:59.4]} 2. g3 {[%clk 0:02:55.2]}
2... c5 {[%clk 0:02:58.3]} 3. Bg2 {[%clk 0:02:50]} 3... Nc6 {[%clk 0:02:58.3]}
4. c4 {[%clk 0:02:43.5]} 4... d4 {[%clk 0:02:57.5]} 5. d3 {[%clk 0:02:38.6]}
5... e5 {[%clk 0:02:57.4]} 6. O-O {[%clk 0:02:34.8]} 6... f6 {[%clk 0:02:57.6]}
7. a3 {[%clk 0:02:31]} 7... a5 {[%clk 0:02:56.8]} 8. b3 {[%clk 0:02:28.1]} 8...
Bg4 {[%clk 0:02:54.8]} 9. h3 {[%clk 0:02:22]} 9... Be6 {[%clk 0:02:54.5]} 10. e3
{[%clk 0:02:16]} 10... Qd7 {[%clk 0:02:52.6]} 11. Kh2 {[%clk 0:02:12.7]} 11...
Nge7 {[%clk 0:02:50.6]} 12. Qc2 {[%clk 0:01:43.4]} 12... Ng6 {[%clk 0:02:46.6]}
13. Nbd2 {[%clk 0:01:38.3]} 13... Be7 {[%clk 0:02:37.6]} 14. Bb2 {[%clk
0:01:14.7]} 14... O-O {[%clk 0:02:32.8]} 15. Rae1 {[%clk 0:01:13.4]} 15... Rfd8
{[%clk 0:01:51.3]} 16. Ne4 {[%clk 0:01:06.1]} 16... dxe3 {[%clk 0:01:46]} 17.
Rxe3 {[%clk 0:00:59.6]} 17... Bf8 {[%clk 0:01:35]} 18. Ne1 {[%clk 0:00:56.1]}
18... Rab8 {[%clk 0:01:23.5]} 19. Nc3 {[%clk 0:00:47.2]} 19... Nd4 {[%clk
0:01:22.3]} 20. Qd1 {[%clk 0:00:47.2]} 20... b5 {[%clk 0:01:16.8]} 21. Nd5
{[%clk 0:00:38.1]} 21... a4 {[%clk 0:01:03.8]} 22. bxa4 {[%clk 0:00:14.3]} 22...
bxc4 {[%clk 0:01:01.7]} 23. Bc3 {[%clk 0:00:12.4]} 23... Bxd5 {[%clk 0:00:58.1]}
0-1

[Event "Early-Titled-Tuesday-Blitz-February-27-2024"]
[Site "Chess.com"]
[Date "2024.02.27"]
[Round "3"]
[White "Sam_ChessMood"]
[Black "FMStan15"]
[Result "1-0"]
[WhiteElo "2942"]
[BlackElo "2094"]
[TimeControl "180+1"]
[EndTime "8:26:39 PST"]
[Termination "Sam_ChessMood won by resignation"]

1. d4 {[%clk 0:02:59.9]} 1... Nf6 {[%clk 0:02:52]} 2. c4 {[%clk 0:03:00]} 2...
g6 {[%clk 0:02:50.9]} 3. Nc3 {[%clk 0:02:59.3]} 3... Bg7 {[%clk 0:02:51.2]} 4.
e4 {[%clk 0:02:59.6]} 4... d6 {[%clk 0:02:51.5]} 5. Be2 {[%clk 0:02:59.8]} 5...
O-O {[%clk 0:02:51]} 6. Be3 {[%clk 0:02:59.9]} 6... Nbd7 {[%clk 0:02:51.1]} 7.
Nf3 {[%clk 0:02:58.9]} 7... e5 {[%clk 0:02:51.3]} 8. d5 {[%clk 0:02:58.7]} 8...
a5 {[%clk 0:02:50.6]} 9. O-O {[%clk 0:02:57.5]} 9... Nc5 {[%clk 0:02:50.8]} 10.
Nd2 {[%clk 0:02:57.7]} 10... b6 {[%clk 0:02:49.6]} 11. b3 {[%clk 0:02:56.3]}
11... Ne8 {[%clk 0:02:48.4]} 12. a3 {[%clk 0:02:51.2]} 12... f5 {[%clk
0:02:48.2]} 13. b4 {[%clk 0:02:38.7]} 13... Nb7 {[%clk 0:01:57]} 14. Nb3 {[%clk
0:02:15.9]} 14... f4 {[%clk 0:01:51.5]} 15. Bd2 {[%clk 0:02:16]} 15... g5 {[%clk
0:01:48.2]} 16. c5 {[%clk 0:02:05.8]} 16... bxc5 {[%clk 0:01:46.4]} 17. bxc5
{[%clk 0:02:04.7]} 17... Nxc5 {[%clk 0:01:46.1]} 18. Nxc5 {[%clk 0:02:04.5]}
18... dxc5 {[%clk 0:01:46.3]} 19. Na4 {[%clk 0:02:04.2]} 19... Nd6 {[%clk
0:01:35.7]} 20. Nxc5 {[%clk 0:02:04]} 20... Qf6 {[%clk 0:01:33.7]} 21. Rc1
{[%clk 0:01:47.7]} 21... Qg6 {[%clk 0:01:31.2]} 22. Bh5 {[%clk 0:01:46.9]} 22...
Qf6 {[%clk 0:01:21.4]} 23. Bg4 {[%clk 0:01:46.7]} 23... Bxg4 {[%clk 0:00:56.5]}
24. Qxg4 {[%clk 0:01:47.6]} 24... Rfb8 {[%clk 0:00:55.9]} 25. Nd7 {[%clk
0:01:42.9]} 25... Qg6 {[%clk 0:00:49.4]} 26. Nxb8 {[%clk 0:01:43]} 26... Rxb8
{[%clk 0:00:49.3]} 27. Bxa5 {[%clk 0:01:38.2]} 27... Nxe4 {[%clk 0:00:47.9]} 28.
Bxc7 {[%clk 0:01:38.4]} 28... Ra8 {[%clk 0:00:38.4]} 29. d6 {[%clk 0:01:37.5]}
29... Nxd6 {[%clk 0:00:35.7]} 30. Bxd6 {[%clk 0:01:34.7]} 30... Qxd6 {[%clk
0:00:35]} 31. Rfd1 {[%clk 0:01:35.4]} 31... Qxa3 {[%clk 0:00:33]} 32. Qe6+
{[%clk 0:01:33.4]} 32... Kh8 {[%clk 0:00:32.4]} 33. Rc8+ {[%clk 0:01:33]} 33...
Rxc8 {[%clk 0:00:30.5]} 34. Qxc8+ {[%clk 0:01:33.9]} 34... Bf8 {[%clk
0:00:30.4]} 35. Qf5 {[%clk 0:01:26.7]} 35... Qe7 {[%clk 0:00:19.7]} 36. Rd7
{[%clk 0:01:25.9]} 1-0

[Event "Early-Titled-Tuesday-Blitz-February-27-2024"]
[Site "Chess.com"]
[Date "2024.02.27"]
[Round "3"]
[White "Talcrifice"]
[Black "regenda"]
[Result "1-0"]
[WhiteElo "2558"]
[BlackElo "2260"]
[TimeControl "180+1"]
[EndTime "8:26:45 PST"]
[Termination "Talcrifice won by resignation"]

1. d4 {[%clk 0:03:00.9]} 1... Nf6 {[%clk 0:02:59.7]} 2. c4 {[%clk 0:03:00.4]}
2... c5 {[%clk 0:03:00]} 3. d5 {[%clk 0:03:00.2]} 3... e6 {[%clk 0:03:00.7]} 4.
Nc3 {[%clk 0:02:59.3]} 4... exd5 {[%clk 0:03:01.6]} 5. cxd5 {[%clk 0:02:59.9]}
5... Bd6 {[%clk 0:03:02.2]} 6. Bg5 {[%clk 0:02:58.5]} 6... O-O {[%clk
0:02:58.4]} 7. Nf3 {[%clk 0:02:57.1]} 7... Re8 {[%clk 0:02:58.4]} 8. e3 {[%clk
0:02:57.2]} 8... a6 {[%clk 0:02:58.2]} 9. a4 {[%clk 0:02:56.3]} 9... Bc7 {[%clk
0:02:58.5]} 10. d6 {[%clk 0:02:56.3]} 10... Ba5 {[%clk 0:02:58.4]} 11. Bc4
{[%clk 0:02:56.1]} 11... Nc6 {[%clk 0:02:53.7]} 12. Qb3 {[%clk 0:02:53.6]} 12...
Re6 {[%clk 0:02:33.1]} 13. Bxe6 {[%clk 0:02:50.6]} 13... fxe6 {[%clk 0:02:34]}
14. O-O {[%clk 0:02:49.3]} 14... Qf8 {[%clk 0:02:34]} 15. Rad1 {[%clk
0:02:46.7]} 15... Bxc3 {[%clk 0:02:17.1]} 16. bxc3 {[%clk 0:02:41.1]} 16... b5
{[%clk 0:02:17.6]} 17. axb5 {[%clk 0:02:40.2]} 17... axb5 {[%clk 0:02:18.5]} 18.
Ra1 {[%clk 0:02:29.9]} 18... Rb8 {[%clk 0:02:01.2]} 19. Bf4 {[%clk 0:02:14.1]}
19... Nd5 {[%clk 0:01:51.7]} 20. Bg3 {[%clk 0:02:12.9]} 20... Qf6 {[%clk
0:01:51.1]} 21. Rfc1 {[%clk 0:02:10]} 21... b4 {[%clk 0:01:46.2]} 22. cxb4
{[%clk 0:02:08.3]} 22... Rxb4 {[%clk 0:01:36.6]} 23. Qd1 {[%clk 0:02:05]} 23...
c4 {[%clk 0:01:18.7]} 24. Ra8 {[%clk 0:02:02.2]} 24... Nb6 {[%clk 0:01:18.8]}
25. Raa1 {[%clk 0:01:53.1]} 25... Bb7 {[%clk 0:01:17]} 26. Rab1 {[%clk 0:01:49]}
26... c3 {[%clk 0:01:05.7]} 27. Rxb4 {[%clk 0:01:46.7]} 27... Nxb4 {[%clk
0:01:06.6]} 28. Ne5 {[%clk 0:01:44]} 28... N6d5 {[%clk 0:00:34.4]} 29. Nxd7
{[%clk 0:01:41.6]} 29... Qd8 {[%clk 0:00:17.5]} 30. Nc5 {[%clk 0:01:40.6]} 30...
Bc6 {[%clk 0:00:17.5]} 31. Nxe6 {[%clk 0:01:40.1]} 31... Qd7 {[%clk 0:00:15.2]}
32. Nd4 {[%clk 0:01:39.4]} 32... Na2 {[%clk 0:00:08.2]} 33. Nxc6 {[%clk
0:01:34.3]} 33... Nxc1 {[%clk 0:00:07.6]} 34. Qxd5+ {[%clk 0:01:32.4]} 34... Kh8
{[%clk 0:00:07.8]} 35. Ne5 {[%clk 0:01:32.5]} 35... c2 {[%clk 0:00:05.3]} 36.
Qa8+ {[%clk 0:01:30.2]} 1-0

[Event "Early-Titled-Tuesday-Blitz-February-27-2024"]
[Site "Chess.com"]
[Date "2024.02.27"]
[Round "3"]
[White "TregubovP"]
[Black "Chesstiger64"]
[Result "1-0"]
[WhiteElo "2689"]
[BlackElo "2345"]
[TimeControl "180+1"]
[EndTime "8:26:46 PST"]
[Termination "TregubovP won by resignation"]

1. e4 {[%clk 0:03:00.9]} 1... e6 {[%clk 0:02:55.2]} 2. d4 {[%clk 0:02:59.7]}
2... d5 {[%clk 0:02:55.2]} 3. exd5 {[%clk 0:02:58.6]} 3... exd5 {[%clk
0:02:54.7]} 4. Nf3 {[%clk 0:02:59.2]} 4... Bd6 {[%clk 0:02:54.6]} 5. c4 {[%clk
0:02:58.3]} 5... Nf6 {[%clk 0:02:53.4]} 6. c5 {[%clk 0:02:56.1]} 6... Be7 {[%clk
0:02:53.5]} 7. Bd3 {[%clk 0:02:54.6]} 7... b6 {[%clk 0:02:53.4]} 8. Be3 {[%clk
0:02:49.6]} 8... bxc5 {[%clk 0:02:52.5]} 9. dxc5 {[%clk 0:02:49.1]} 9... c6
{[%clk 0:02:52.1]} 10. O-O {[%clk 0:02:46.1]} 10... Nbd7 {[%clk 0:02:51.4]} 11.
Qc2 {[%clk 0:02:43.6]} 11... a5 {[%clk 0:02:51.1]} 12. Nd4 {[%clk 0:02:27.2]}
12... Qc7 {[%clk 0:02:45.3]} 13. Nf5 {[%clk 0:02:26.1]} 13... Ba6 {[%clk
0:02:38.4]} 14. Re1 {[%clk 0:02:13.1]} 14... Bxd3 {[%clk 0:02:36.1]} 15. Qxd3
{[%clk 0:02:11.4]} 15... Ne4 {[%clk 0:02:13.2]} 16. Nxe7 {[%clk 0:02:08.4]}
16... Kxe7 {[%clk 0:02:12.9]} 17. f3 {[%clk 0:02:06.6]} 17... f5 {[%clk
0:02:09.5]} 18. fxe4 {[%clk 0:02:03.6]} 18... fxe4 {[%clk 0:02:09.8]} 19. Bg5+
{[%clk 0:01:58]} 19... Ke6 {[%clk 0:02:03.5]} 20. Qh3+ {[%clk 0:01:49.6]} 20...
Kf7 {[%clk 0:02:02.3]} 21. Rf1+ {[%clk 0:01:49.9]} 21... Nf6 {[%clk 0:01:59.2]}
22. Qh5+ {[%clk 0:01:44]} 22... Ke7 {[%clk 0:01:50.1]} 23. Bxf6+ {[%clk
0:01:33.8]} 23... gxf6 {[%clk 0:01:49.3]} 24. Nc3 {[%clk 0:01:28.4]} 24... Qe5
{[%clk 0:01:48]} 25. Qh6 {[%clk 0:01:15.1]} 25... Rag8 {[%clk 0:01:36.3]} 26.
Rae1 {[%clk 0:01:14.1]} 26... Qg5 {[%clk 0:01:32.1]} 27. Qxg5 {[%clk 0:01:12]}
27... Rxg5 {[%clk 0:01:32.5]} 28. Ne2 {[%clk 0:01:12.2]} 28... f5 {[%clk
0:01:27.8]} 29. Nd4 {[%clk 0:01:10.6]} 29... Kd7 {[%clk 0:01:26.7]} 30. Rxf5
{[%clk 0:01:09.3]} 30... Rxf5 {[%clk 0:01:26.5]} 31. Nxf5 {[%clk 0:01:09.5]}
31... Rb8 {[%clk 0:01:26.9]} 32. b3 {[%clk 0:01:06.3]} 32... Rb5 {[%clk
0:01:26.1]} 33. Rc1 {[%clk 0:01:04.2]} 33... a4 {[%clk 0:01:22.4]} 34. Nd4
{[%clk 0:00:59.2]} 34... Rb4 {[%clk 0:01:20.1]} 35. Rd1 {[%clk 0:00:59.8]} 35...
axb3 {[%clk 0:01:20]} 36. axb3 {[%clk 0:00:59.1]} 36... Rb8 {[%clk 0:01:13.9]}
37. Kf2 {[%clk 0:00:57.3]} 37... Rf8+ {[%clk 0:01:08.7]} 38. Ke3 {[%clk
0:00:56.9]} 38... h5 {[%clk 0:01:08.4]} 39. Ra1 {[%clk 0:00:56.1]} 39... h4
{[%clk 0:01:06.4]} 40. Ra7+ {[%clk 0:00:55.1]} 40... Ke8 {[%clk 0:00:59.6]} 41.
Ra8+ {[%clk 0:00:55.2]} 41... Kf7 {[%clk 0:00:58.8]} 42. Rxf8+ {[%clk
0:00:55.5]} 42... Kxf8 {[%clk 0:00:58.9]} 43. Nxc6 {[%clk 0:00:56]} 43... h3
{[%clk 0:00:58.6]} 44. gxh3 {[%clk 0:00:55.1]} 44... d4+ {[%clk 0:00:59]} 45.
Nxd4 {[%clk 0:00:54.9]} 45... Ke7 {[%clk 0:00:58]} 46. Kxe4 {[%clk 0:00:54.3]}
1-0

[Event "Early-Titled-Tuesday-Blitz-February-27-2024"]
[Site "Chess.com"]
[Date "2024.02.27"]
[Round "3"]
[White "GoltsevDmitry2000"]
[Black "amanjazu"]
[Result "1-0"]
[WhiteElo "2776"]
[BlackElo "2509"]
[TimeControl "180+1"]
[EndTime "8:26:46 PST"]
[Termination "GoltsevDmitry2000 won by resignation"]

1. e4 {[%clk 0:03:00]} 1... Nf6 {[%clk 0:02:59.7]} 2. e5 {[%clk 0:03:00]} 2...
Nd5 {[%clk 0:03:00.3]} 3. Nc3 {[%clk 0:03:00.9]} 3... Nb6 {[%clk 0:02:58.1]} 4.
d4 {[%clk 0:03:00.2]} 4... d6 {[%clk 0:02:58.5]} 5. exd6 {[%clk 0:03:01.1]} 5...
cxd6 {[%clk 0:02:59.3]} 6. Nf3 {[%clk 0:03:01.5]} 6... g6 {[%clk 0:02:59.9]} 7.
Bd3 {[%clk 0:03:01.3]} 7... Bg7 {[%clk 0:03:00.5]} 8. O-O {[%clk 0:03:01.5]}
8... O-O {[%clk 0:03:01.4]} 9. Re1 {[%clk 0:03:00.8]} 9... Bg4 {[%clk
0:03:01.2]} 10. h3 {[%clk 0:02:59.8]} 10... Bxf3 {[%clk 0:03:01.1]} 11. Qxf3
{[%clk 0:03:00.7]} 11... Nc6 {[%clk 0:03:01.5]} 12. d5 {[%clk 0:03:00]} 12...
Nb4 {[%clk 0:02:20.6]} 13. Bg5 {[%clk 0:02:57.7]} 13... Re8 {[%clk 0:02:06.6]}
14. Bb5 {[%clk 0:02:56.3]} 14... Bxc3 {[%clk 0:02:06.2]} 15. bxc3 {[%clk
0:02:50.4]} 15... N4xd5 {[%clk 0:01:34.7]} 16. Bxe8 {[%clk 0:02:49.7]} 16...
Qxe8 {[%clk 0:01:35.6]} 17. c4 {[%clk 0:02:50.2]} 17... h6 {[%clk 0:01:32.1]}
18. Bh4 {[%clk 0:02:44.6]} 18... g5 {[%clk 0:01:31.2]} 19. cxd5 {[%clk
0:02:44.9]} 19... gxh4 {[%clk 0:01:30.8]} 20. Re4 {[%clk 0:02:43.6]} 20... Qf8
{[%clk 0:01:20.1]} 21. Rxh4 {[%clk 0:02:42.5]} 21... e5 {[%clk 0:01:11.1]} 22.
dxe6 {[%clk 0:02:41.4]} 22... fxe6 {[%clk 0:01:11.8]} 23. Qxb7 {[%clk
0:02:36.4]} 23... Qf6 {[%clk 0:01:03.1]} 24. Rg4+ {[%clk 0:02:35.1]} 24... Kh8
{[%clk 0:01:03.7]} 25. Re1 {[%clk 0:02:34.8]} 25... Rf8 {[%clk 0:01:02.7]} 26.
Kh1 {[%clk 0:02:34.8]} 26... e5 {[%clk 0:00:53.3]} 27. Qxa7 {[%clk 0:02:26.9]}
27... Nd5 {[%clk 0:00:53.4]} 28. Rb1 {[%clk 0:02:24.6]} 28... h5 {[%clk
0:00:49.6]} 29. Rg3 {[%clk 0:02:22.1]} 29... h4 {[%clk 0:00:32.5]} 30. Rg4
{[%clk 0:02:21.7]} 30... Qh6 {[%clk 0:00:33.1]} 31. Rb7 {[%clk 0:02:14.8]} 31...
Nf6 {[%clk 0:00:33.3]} 32. Rgb4 {[%clk 0:01:41.4]} 32... e4 {[%clk 0:00:30.7]}
33. Qe3 {[%clk 0:01:39.5]} 33... Qg6 {[%clk 0:00:26.1]} 34. Rb8 {[%clk 0:01:39]}
34... Kg8 {[%clk 0:00:18.2]} 35. Rxf8+ {[%clk 0:01:36.3]} 35... Kxf8 {[%clk
0:00:19.1]} 36. Rb7 {[%clk 0:01:36.6]} 36... Qf5 {[%clk 0:00:08.5]} 37. Qh6+
{[%clk 0:01:34]} 1-0

[Event "Early-Titled-Tuesday-Blitz-February-27-2024"]
[Site "Chess.com"]
[Date "2024.02.27"]
[Round "3"]
[White "Ramla2020"]
[Black "olawsson"]
[Result "1-0"]
[WhiteElo "2404"]
[BlackElo "2127"]
[TimeControl "180+1"]
[EndTime "8:26:52 PST"]
[Termination "Ramla2020 won on time"]

1. c4 {[%clk 0:02:58.9]} 1... Nf6 {[%clk 0:02:58.1]} 2. g3 {[%clk 0:02:58.7]}
2... g6 {[%clk 0:02:55.9]} 3. Bg2 {[%clk 0:02:58.6]} 3... d5 {[%clk 0:02:55.9]}
4. Nc3 {[%clk 0:02:59.5]} 4... d4 {[%clk 0:02:53.9]} 5. Nd5 {[%clk 0:02:59.5]}
5... Nfd7 {[%clk 0:02:52.1]} 6. Nf3 {[%clk 0:02:49.1]} 6... e5 {[%clk
0:02:39.7]} 7. e3 {[%clk 0:02:29.3]} 7... c6 {[%clk 0:02:30.3]} 8. exd4 {[%clk
0:02:29.1]} 8... cxd5 {[%clk 0:02:17.9]} 9. cxd5 {[%clk 0:02:29.3]} 9... e4
{[%clk 0:02:03.8]} 10. Ne5 {[%clk 0:02:14.9]} 10... Nxe5 {[%clk 0:01:53.8]} 11.
dxe5 {[%clk 0:02:15.8]} 11... Qxd5 {[%clk 0:01:52.6]} 12. Qa4+ {[%clk
0:02:15.6]} 12... Bd7 {[%clk 0:01:36.4]} 13. Qxe4 {[%clk 0:02:15.1]} 13... Qxe4+
{[%clk 0:01:36.6]} 14. Bxe4 {[%clk 0:02:15.9]} 14... Bc6 {[%clk 0:01:37.1]} 15.
Bxc6+ {[%clk 0:02:09]} 15... Nxc6 {[%clk 0:01:37.1]} 16. f4 {[%clk 0:02:09.2]}
16... Bc5 {[%clk 0:01:21.6]} 17. d3 {[%clk 0:02:06]} 17... Nd4 {[%clk
0:01:15.1]} 18. Kf1 {[%clk 0:02:01.3]} 18... f6 {[%clk 0:00:55.7]} 19. exf6
{[%clk 0:01:58.1]} 19... Kf7 {[%clk 0:00:56]} 20. Bd2 {[%clk 0:01:57.4]} 20...
b5 {[%clk 0:00:35.6]} 21. Rc1 {[%clk 0:01:49.3]} 21... Rac8 {[%clk 0:00:35.1]}
22. Kg2 {[%clk 0:01:44]} 22... Kxf6 {[%clk 0:00:30]} 23. Rhe1 {[%clk 0:01:41.2]}
23... b4 {[%clk 0:00:21.7]} 24. Rc4 {[%clk 0:01:35.5]} 24... Bb6 {[%clk
0:00:14.2]} 25. Bxb4 {[%clk 0:01:29.9]} 25... Rxc4 {[%clk 0:00:11.3]} 26. dxc4
{[%clk 0:01:30.8]} 26... Rc8 {[%clk 0:00:07.6]} 27. b3 {[%clk 0:01:27.9]} 27...
Kf7 {[%clk 0:00:03.9]} 28. Re4 {[%clk 0:01:25.7]} 28... Ne6 {[%clk 0:00:02.9]}
29. Bd6 {[%clk 0:01:24.8]} 29... Rd8 {[%clk 0:00:02.1]} 30. Bb4 {[%clk
0:01:19.1]} 30... Rd3 {[%clk 0:00:01.9]} 31. Re5 {[%clk 0:01:15]} 1-0

[Event "Early-Titled-Tuesday-Blitz-February-27-2024"]
[Site "Chess.com"]
[Date "2024.02.27"]
[Round "3"]
[White "Nbk90"]
[Black "maurovargas01"]
[Result "1-0"]
[WhiteElo "2315"]
[BlackElo "1874"]
[TimeControl "180+1"]
[EndTime "8:26:54 PST"]
[Termination "Nbk90 won by checkmate"]

1. d4 {[%clk 0:03:00.9]} 1... d5 {[%clk 0:02:59.1]} 2. Bf4 {[%clk 0:03:00.4]}
2... h5 {[%clk 0:02:56.7]} 3. Nc3 {[%clk 0:02:56.6]} 3... a6 {[%clk 0:02:41.8]}
4. e3 {[%clk 0:02:56.2]} 4... e5 {[%clk 0:02:40.1]} 5. Bxe5 {[%clk 0:02:41.1]}
5... f6 {[%clk 0:02:39.6]} 6. Bd3 {[%clk 0:02:29.6]} 6... Ne7 {[%clk 0:02:38.4]}
7. Nf3 {[%clk 0:02:10.8]} 7... fxe5 {[%clk 0:02:36.7]} 8. Nxe5 {[%clk
0:02:10.1]} 8... Nd7 {[%clk 0:02:26.1]} 9. f4 {[%clk 0:01:59.9]} 9... Nxe5
{[%clk 0:02:21.8]} 10. fxe5 {[%clk 0:02:00.8]} 10... Bg4 {[%clk 0:02:20.6]} 11.
Qd2 {[%clk 0:01:50]} 11... Qd7 {[%clk 0:02:13.9]} 12. O-O {[%clk 0:01:40.4]}
12... O-O-O {[%clk 0:02:12.7]} 13. b4 {[%clk 0:01:38.8]} 13... g5 {[%clk
0:02:05.5]} 14. a4 {[%clk 0:01:38.2]} 14... Bh6 {[%clk 0:01:55.6]} 15. a5 {[%clk
0:01:33.6]} 15... Rhf8 {[%clk 0:01:53.8]} 16. b5 {[%clk 0:01:32.4]} 16... Rxf1+
{[%clk 0:01:52.7]} 17. Rxf1 {[%clk 0:01:30.2]} 17... axb5 {[%clk 0:01:47]} 18.
Bxb5 {[%clk 0:01:21.6]} 18... c6 {[%clk 0:01:44.8]} 19. Na4 {[%clk 0:01:18.2]}
19... Kb8 {[%clk 0:01:30]} 20. Nc5 {[%clk 0:01:16]} 20... Qc8 {[%clk 0:01:20.6]}
21. Bd3 {[%clk 0:00:59.9]} 21... Rf8 {[%clk 0:01:18.4]} 22. Rb1 {[%clk
0:00:56.4]} 22... Bf5 {[%clk 0:00:46]} 23. Nxb7 {[%clk 0:00:47.9]} 23... Kc7
{[%clk 0:00:39.3]} 24. Qb4 {[%clk 0:00:42.1]} 24... Rf7 {[%clk 0:00:21.6]} 25.
Qd6# {[%clk 0:00:38.8]} 1-0